fUST/lending_fUST_20241021
["ID","MTS","AMOUNT","RATE_DAILY","PERIOD"]
[340572345,1729504251562,-500.0,0.00016712,2]
[340572346,1729504251572,-500.0,0.00016712,2]
[340572347,1729504251581,-500.0,0.00016712,2]
[340572348,1729504251591,-500.0,0.00016712,2]
[340572349,1729504251601,-564.69844537,0.00016712,2]
[340572350,1729504251610,-800.35,0.00016712,2]
[340572351,1729504251620,-500.0,0.00016712,2]
[340572352,1729504251630,-1948.74,0.00016712,2]
[340572353,1729504251640,-500.0,0.00016712,2]
[340572354,1729504251650,-500.0,0.00016712,2]
[340572355,1729504251659,-500.0,0.00016712,2]
[340572356,1729504251669,-500.0,0.00016712,2]
[340572357,1729504251679,-779.97,0.00016712,2]
[340572358,1729504251689,-1111.02,0.00016712,2]
[340572359,1729504251698,-1188.93,0.00016712,2]
[340572360,1729504251707,-500.0,0.00016712,2]
[340572361,1729504251717,-500.0,0.00016712,2]
[340572362,1729504251726,-298.65754963,0.00016712,2]
[340572363,1729504251736,-500.0,0.00016712,2]
[340572364,1729504251746,-716.66,0.00016712,2]
[340572365,1729504251757,-500.0,0.00016712,2]
[340572366,1729504251767,-500.0,0.00016712,2]
[340572367,1729504251777,-803.22,0.00016712,2]
[340572368,1729504251787,-500.0,0.00016712,2]
[340572369,1729504251797,-1904.77,0.00016712,2]
[340572370,1729504251809,-541.46136839,0.00016712,2]
[340572371,1729504251819,-500.0,0.00016712,2]
[340572372,1729504251829,-1340.89,0.00016712,2]
[340572373,1729504251838,-540.41468828,0.00016712,2]
[340572374,1729504251848,-500.0,0.00016712,2]
[340572375,1729504251858,-151.0,0.00016712,2]
[340572376,1729504251867,-151.0,0.00016712,2]
[340572377,1729504251879,-151.101634,0.00016712,2]
[340572378,1729504251888,-500.0,0.00016712,2]
[340572379,1729504251898,-769.65,0.00016712,2]
[340572380,1729504251908,-500.0,0.00016712,2]
[340572381,1729504251918,-500.0,0.00016712,2]
[340572382,1729504251928,-500.0,0.00016712,2]
[340572383,1729504251937,-2978.98,0.00016712,2]
[340572384,1729504251947,-358.2210623,0.00016712,2]
[340572385,1729504251957,-500.0,0.00016712,2]
[340572386,1729504251967,-1935.71,0.00016712,2]
[340572387,1729504251977,-500.0,0.00016712,2]
[340572388,1729504251986,-896.61,0.00016712,2]
[340572389,1729504251996,-592.82356721,0.00016712,2]
[340572390,1729504252006,-500.0,0.00016712,2]
[340572391,1729504252015,-1844.27,0.00016712,2]
[340572392,1729504252025,-754.01,0.00016712,2]
[340572393,1729504252034,-500.0,0.00016712,2]
[340572394,1729504252043,-500.0,0.00016712,2]
[340572395,1729504252053,-500.0,0.00016712,2]
[340572396,1729504252063,-197.9792541,0.00016712,2]
[340572397,1729504252073,-500.0,0.00016712,2]
[340572398,1729504252082,-500.0,0.00016712,2]
[340572399,1729504252092,-500.0,0.00016712,2]
[340572400,1729504252101,-921.92,0.00016712,2]
[340572401,1729504252110,-151.0,0.00016712,2]
[340572402,1729504252120,-160.406154,0.00016712,2]
[340572403,1729504252129,-500.0,0.00016712,2]
[340572404,1729504252139,-2368.23,0.00016712,2]
[340572405,1729504252148,-1303.45,0.00016712,2]
[340572406,1729504252158,-500.0,0.00016712,2]
[340572407,1729504252167,-1233.45,0.00016712,2]
[340572408,1729504252176,-500.0,0.00016712,2]
[340572409,1729504252186,-517.38010918,0.00016712,2]
[340572410,1729504252196,-500.0,0.00016712,2]
[340572411,1729504252205,-533.43,0.00016712,2]
[340572412,1729504252214,-1951.67,0.00016712,2]
[340572413,1729504252224,-279.91870834,0.00016712,2]
[340572414,1729504252233,-553.53189413,0.00016712,2]
[340572415,1729504252242,-500.0,0.00016712,2]
[340572416,1729504252253,-500.0,0.00016712,2]
[340572417,1729504252262,-500.0,0.00016712,2]
[340572418,1729504252272,-1146.52,0.00016712,2]
[340572419,1729504252282,-500.0,0.00016712,2]
[340572420,1729504252291,-901.42,0.00016712,2]
[340572421,1729504252301,-500.0,0.00016712,2]
[340572422,1729504252310,-1813.37,0.00016712,2]
[340572423,1729504252320,-500.0,0.00016712,2]
[340572424,1729504252329,-500.0,0.00016712,2]
[340572425,1729504252338,-2195.03,0.00016712,2]
[340572426,1729504252348,-597.21,0.00016712,2]
[340572427,1729504252357,-500.0,0.00016712,2]
[340572428,1729504252366,-2822.2,0.00016712,2]
[340572429,1729504252375,-2438.97,0.00016712,2]
[340572430,1729504252387,-922.4,0.00016712,2]
[340572431,1729504252398,-500.0,0.00016712,2]
[340572432,1729504252407,-271.9253244,0.00016712,2]
[340572433,1729504252417,-1459.35,0.00016712,2]
[340572434,1729504252426,-500.0,0.00016712,2]
[340572435,1729504252436,-500.0,0.00016712,2]
[340572436,1729504252445,-1559.68,0.00016712,2]
[340572437,1729504252456,-151.0,0.00016712,2]
[340572438,1729504252465,-151.0,0.00016712,2]
[340572439,1729504252474,-151.0,0.00016712,2]
[340572440,1729504252484,-1191.51,0.00016712,2]
[340572441,1729504252493,-500.0,0.00016712,2]
[340572442,1729504252504,-500.0,0.00016712,2]
[340572443,1729504252514,-645.73,0.00016712,2]
[340572444,1729504252524,-1392.82,0.00016712,2]
[340572445,1729504252533,-1218.78,0.00016712,2]
[340572446,1729504252543,-500.0,0.00016712,2]
[340572447,1729504252552,-872.82,0.00016712,2]
[340572448,1729504252562,-825.8,0.00016712,2]
[340572449,1729504252571,-500.0,0.00016712,2]
[340572450,1729504252580,-500.0,0.00016712,2]
[340572451,1729504252590,-1502.95,0.00016712,2]
[340572452,1729504252600,-367.19153053,0.00016712,2]
[340572453,1729504252610,-151.0,0.00016712,2]
[340572454,1729504252620,-151.0,0.00016712,2]
[340572455,1729504252629,-151.0,0.00016712,2]
[340572456,1729504252639,-151.0,0.00016712,2]
[340572457,1729504252648,-2122.08,0.00016712,2]
[340572458,1729504252657,-151.0,0.00016712,2]
[340572459,1729504252667,-516.06623936,0.00016712,2]
[340572460,1729504252676,-151.0,0.00016712,2]
[340572461,1729504252686,-151.0,0.00016712,2]
[340572462,1729504252696,-151.0,0.00016712,2]
[340572463,1729504252706,-151.0,0.00016712,2]
[340572464,1729504252716,-500.0,0.00016712,2]
[340572465,1729504252726,-500.0,0.00016712,2]
[340572466,1729504252735,-500.0,0.00016712,2]
[340572467,1729504252745,-500.0,0.00016712,2]
[340572468,1729504252757,-291.45,0.00016712,2]
[340572469,1729504252767,-151.0,0.00016712,2]
[340572470,1729504252777,-151.0,0.00016712,2]
[340572471,1729504252787,-228.764385,0.00016712,2]
[340572472,1729504252797,-524.73122895,0.00016712,2]
[340572473,1729504252809,-500.0,0.00016712,2]
[340572474,1729504252819,-500.0,0.00016712,2]
[340572475,1729504252829,-943.81,0.00016712,2]
[340572476,1729504253050,-1995.33,0.00016712,2]
[340572477,1729504253060,-500.0,0.00016712,2]
[340572478,1729504253070,-545.65582153,0.00016712,2]
[340572479,1729504253080,-151.0,0.00016712,2]
[340572480,1729504253089,-1163.47,0.00016712,2]
[340572481,1729504253098,-500.0,0.00016712,2]
[340572482,1729504253108,-500.0,0.00016712,2]
[340572483,1729504253117,-151.0,0.00016712,2]
[340572484,1729504253127,-1652.48,0.00016712,2]
[340572485,1729504253136,-152.020855,0.00016712,2]
[340572486,1729504253145,-500.0,0.00016712,2]
[340572487,1729504253155,-500.0,0.00016712,2]
[340572488,1729504253164,-568.60903994,0.00016712,2]
[340572489,1729504253173,-500.0,0.00016712,2]
[340572490,1729504253183,-3930.42,0.00016712,2]
[340572491,1729504253193,-1777.18,0.00016712,2]
[340572492,1729504253203,-546.33973607,0.00016712,2]
[340572493,1729504253212,-377.95477445,0.00016712,2]
[340572494,1729504253221,-1973.25,0.00016712,2]
[340572495,1729504253231,-1499.42,0.00016712,2]
[340572496,1729504253240,-1736.62,0.00016712,2]
[340572497,1729504253249,-2086.16,0.00016712,2]
[340572498,1729504253258,-500.0,0.00016712,2]
[340572499,1729504253268,-173.014284,0.00016712,2]
[340572500,1729504253277,-173.014284,0.00016712,2]
[340572501,1729504253286,-173.014284,0.00016712,2]
[340572502,1729504253296,-349.332568,0.00016712,2]
[340572503,1729504253306,-173.014284,0.00016712,2]
[340572504,1729504253316,-349.332568,0.00016712,2]
[340572505,1729504253325,-173.014284,0.00016712,2]
[340572506,1729504253334,-771.81,0.00016712,2]
[340572507,1729504253344,-349.332568,0.00016712,2]
[340572508,1729504253353,-173.014284,0.00016712,2]
[340572509,1729504253362,-1070.03,0.00016712,2]
[340572510,1729504253371,-1636.51,0.00016712,2]
[340572511,1729504253381,-500.0,0.00016712,2]
[340572512,1729504253392,-500.0,0.00016712,2]
[340572513,1729504253402,-3355.97,0.00016712,2]
[340572514,1729504253411,-349.332568,0.00016712,2]
[340572515,1729504253420,-349.332568,0.00016712,2]
[340572516,1729504253429,-349.332568,0.00016712,2]
[340572517,1729504253438,-935.89,0.00016712,2]
[340572518,1729504253447,-500.0,0.00016712,2]
[340572519,1729504253456,-500.0,0.00016712,2]
[340572520,1729504253465,-1506.54,0.00016712,2]
[340572521,1729504253475,-930.99,0.00016712,2]
[340572522,1729504253485,-500.0,0.00016712,2]
[340572523,1729504253494,-617.97,0.00016712,2]
[340572524,1729504253504,-151.0,0.00016712,2]
[340572525,1729504253514,-151.0,0.00016712,2]
[340572526,1729504253523,-151.0,0.00016712,2]
[340572527,1729504253532,-500.0,0.00016712,2]
[340572528,1729504253541,-961.48864604,0.00016712,2]
[340572529,1729504253550,-151.0,0.00016712,2]
[340572530,1729504253559,-727.7,0.00016712,2]
[340572531,1729504253569,-151.0,0.00016712,2]
[340572532,1729504253578,-579.26,0.00016712,2]
[340572533,1729504253587,-151.0,0.00016712,2]
[340572534,1729504253597,-1894.95,0.00016712,2]
[340572535,1729504253606,-2621.2,0.00016712,2]
[340572536,1729504253616,-500.0,0.00016712,2]
[340572537,1729504253625,-273.54835388,0.00016712,2]
[340572538,1729504253634,-500.0,0.00016712,2]
[340572539,1729504253643,-500.0,0.00016712,2]
[340572540,1729504253652,-500.0,0.00016712,2]
[340572541,1729504253661,-500.0,0.00016712,2]
[340572542,1729504253670,-503.47,0.00016712,2]
[340572543,1729504253679,-500.0,0.00016712,2]
[340572544,1729504253689,-500.0,0.00016712,2]
[340572545,1729504253698,-500.0,0.00016712,2]
[340572546,1729504253707,-3086.17,0.00016712,2]
[340572547,1729504253716,-500.0,0.00016712,2]
[340572548,1729504253725,-151.0,0.00016712,2]
[340572549,1729504253734,-500.0,0.00016712,2]
[340572550,1729504253744,-151.0,0.00016712,2]
[340572551,1729504253753,-151.0,0.00016712,2]
[340572552,1729504253763,-1397.72,0.00016712,2]
[340572553,1729504253772,-721.92,0.00016712,2]
[340572554,1729504253781,-559.48409218,0.00016712,2]
[340572555,1729504253790,-1507.46,0.00016712,2]
[340572556,1729504253800,-500.0,0.00016712,2]
[340572557,1729504253813,-470.21173,0.00016712,2]
[340572558,1729504253823,-769.7,0.00016712,2]
[340572559,1729504253831,-470.21173,0.00016712,2]
[340572560,1729504253840,-470.21173,0.00016712,2]
[340572561,1729504253850,-500.0,0.00016712,2]
[340572562,1729504253860,-500.0,0.00016712,2]
[340572563,1729504253869,-470.21173,0.00016712,2]
[340572564,1729504253878,-470.21173,0.00016712,2]
[340572565,1729504253889,-470.21173,0.00016712,2]
[340572566,1729504253899,-500.0,0.00016712,2]
[340572567,1729504253908,-151.0,0.00016712,2]
[340572568,1729504253917,-151.0,0.00016712,2]
[340572569,1729504253927,-500.0,0.00016712,2]
[340572570,1729504253936,-534.52291082,0.00016712,2]
[340572571,1729504253946,-151.0,0.00016712,2]
[340572572,1729504253955,-500.0,0.00016712,2]
[340572573,1729504253964,-1638.33,0.00016712,2]
[340572574,1729504253973,-1046.66,0.00016712,2]
[340572575,1729504253982,-2179.63,0.00016712,2]
[340572576,1729504253992,-151.0,0.00016712,2]
[340572577,1729504254002,-151.0,0.00016712,2]
[340572578,1729504254012,-151.0,0.00016712,2]
[340572579,1729504254021,-500.0,0.00016712,2]
[340572580,1729504254031,-500.0,0.00016712,2]
[340572581,1729504254040,-500.0,0.00016712,2]
[340572582,1729504254049,-151.0,0.00016712,2]
[340572583,1729504254059,-151.0,0.00016712,2]
[340572584,1729504254068,-500.0,0.00016712,2]
[340572585,1729504254078,-500.0,0.00016712,2]
[340572586,1729504254087,-151.0,0.00016712,2]
[340572587,1729504254097,-921.64,0.00016712,2]
[340572588,1729504254107,-500.0,0.00016712,2]
[340572589,1729504254116,-841.07,0.00016712,2]
[340572590,1729504254126,-395.245614,0.00016712,2]
[340572591,1729504254135,-214.48778,0.00016712,2]
[340572592,1729504254144,-395.245614,0.00016712,2]
[340572593,1729504254154,-500.0,0.00016712,2]
[340572594,1729504254163,-395.245614,0.00016712,2]
[340572595,1729504254172,-1189.79,0.00016712,2]
[340572596,1729504254182,-554.42000775,0.00016712,2]
[340572597,1729504254191,-283.3136847,0.00016712,2]
[340572598,1729504254201,-1348.1,0.00016712,2]
[340572599,1729504254210,-395.245614,0.00016712,2]
[340572600,1729504254220,-395.245614,0.00016712,2]
[340572601,1729504254229,-151.0,0.00016712,2]
[340572602,1729504254239,-395.245614,0.00016712,2]
[340572603,1729504254249,-500.0,0.00016712,2]
[340572604,1729504254258,-151.0,0.00016712,2]
[340572605,1729504254268,-151.0,0.00016712,2]
[340572606,1729504254277,-1000.11,0.00016712,2]
[340572607,1729504254286,-500.0,0.00016712,2]
[340572608,1729504254296,-500.0,0.00016712,2]
[340572609,1729504254305,-1058.31,0.00016712,2]
[340572610,1729504254314,-1374.74,0.00016712,2]
[340572611,1729504254323,-151.0,0.00016712,2]
[340572612,1729504254333,-151.0,0.00016712,2]
[340572613,1729504254342,-901.06,0.00016712,2]
[340572614,1729504254351,-579.09,0.00016712,2]
[340572615,1729504254361,-566.32927359,0.00016712,2]
[340572616,1729504254370,-500.0,0.00016712,2]
[340572617,1729504254381,-500.0,0.00016712,2]
[340572618,1729504254391,-500.0,0.00016712,2]
[340572619,1729504254401,-500.0,0.00016712,2]
[340572620,1729504254410,-2444.97,0.00016712,2]
[340572621,1729504254419,-500.0,0.00016712,2]
[340572622,1729504254428,-1632.14,0.00016712,2]
[340572623,1729504254438,-1036.32,0.00016712,2]
[340572624,1729504254448,-2009.62,0.00016712,2]
[340572625,1729504254458,-538.57678757,0.00016712,2]
[340572626,1729504254468,-500.0,0.00016712,2]
[340572627,1729504254478,-1262.08,0.00016712,2]
[340572628,1729504254488,-1994.82,0.00016712,2]
[340572629,1729504254497,-151.0,0.00016712,2]
[340572630,1729504254507,-151.0,0.00016712,2]
[340572631,1729504254517,-500.0,0.00016712,2]
[340572632,1729504254526,-194.450294,0.00016712,2]
[340572633,1729504254536,-500.0,0.00016712,2]
[340572634,1729504254545,-500.0,0.00016712,2]
[340572635,1729504254554,-662.07,0.00016712,2]
[340572636,1729504254564,-1605.44,0.00016712,2]
[340572637,1729504254573,-761.47,0.00016712,2]
[340572638,1729504254583,-500.0,0.00016712,2]
[340572639,1729504254593,-532.03658155,0.00016712,2]
[340572640,1729504254602,-1391.8,0.00016712,2]
[340572641,1729504254611,-500.0,0.00016712,2]
[340572642,1729504254621,-500.0,0.00016712,2]
[340572643,1729504254631,-1081.3,0.00016712,2]
[340572644,1729504254641,-632.08,0.00016712,2]
[340572645,1729504254651,-500.0,0.00016712,2]
[340572646,1729504254660,-500.0,0.00016712,2]
[340572647,1729504254669,-1659.6,0.00016712,2]
[340572648,1729504254679,-614.44,0.00016712,2]
[340572649,1729504254688,-500.0,0.00016712,2]
[340572650,1729504254698,-2585.37,0.00016712,2]
[340572651,1729504254708,-500.0,0.00016712,2]
[340572652,1729504254718,-1369.0,0.00016712,2]
[340572653,1729504254728,-1217.668717,0.00016712,2]
[340572654,1729504254738,-1217.668717,0.00016712,2]
[340572655,1729504254747,-1217.668717,0.00016712,2]
[340572656,1729504254757,-906.4,0.00016712,2]
[340572657,1729504254767,-547.91576217,0.00016712,2]
[340572658,1729504254777,-638.06553,0.00016712,2]
[340572659,1729504254786,-500.0,0.00016712,2]
[340572660,1729504254796,-638.06553,0.00016712,2]
[340572661,1729504254809,-638.06553,0.00016712,2]
[340572662,1729504254818,-1126.22,0.00016712,2]
[340572663,1729504254828,-1148.61,0.00016712,2]
[340572664,1729504254837,-1217.668717,0.00016712,2]
[340572665,1729504254848,-1217.668717,0.00016712,2]
[340572666,1729504254857,-1217.668717,0.00016712,2]
[340572667,1729504254868,-500.0,0.00016712,2]
[340572668,1729504254878,-638.06553,0.00016712,2]
[340572669,1729504254887,-151.0,0.00016712,2]
[340572670,1729504254897,-638.06553,0.00016712,2]
[340572671,1729504254907,-638.06553,0.00016712,2]
[340572672,1729504254916,-500.0,0.00016712,2]
[340572673,1729504254926,-151.0,0.00016712,2]
[340572674,1729504254936,-151.0,0.00016712,2]
[340572675,1729504254946,-185.6863943,0.00016712,2]
[340572676,1729504254955,-736.780474,0.00016712,2]
[340572677,1729504254965,-500.0,0.00016712,2]
[340572678,1729504254975,-500.0,0.00016712,2]
[340572679,1729504254985,-500.0,0.00016712,2]
[340572680,1729504254995,-500.0,0.00016712,2]
[340572681,1729504255005,-928.11,0.00016712,2]
[340572682,1729504255014,-500.0,0.00016712,2]
[340572683,1729504255024,-2519.02,0.00016712,2]
[340572684,1729504255034,-500.0,0.00016712,2]
[340572685,1729504255043,-1149.33,0.00016712,2]
[340572686,1729504255053,-724.02,0.00016712,2]
[340572687,1729504255063,-736.780474,0.00016712,2]
[340572688,1729504255072,-500.0,0.00016712,2]
[340572689,1729504255082,-736.780474,0.00016712,2]
[340572690,1729504255091,-2202.1214,0.00016712,2]
[340572691,1729504255101,-2202.1214,0.00016712,2]
[340572692,1729504255111,-2202.1214,0.00016712,2]
[340572693,1729504255120,-591.82653574,0.00016712,2]
[340572694,1729504255129,-500.0,0.00016712,2]
[340572695,1729504255138,-676.5,0.00016712,2]
[340572696,1729504255148,-736.780474,0.00016712,2]
[340572697,1729504255158,-500.0,0.00016712,2]
[340572698,1729504255168,-736.780474,0.00016712,2]
[340572699,1729504255177,-981.14,0.00016712,2]
[340572700,1729504255187,-736.780474,0.00016712,2]
[340572701,1729504255197,-1012.42,0.00016712,2]
[340572702,1729504255207,-2202.1214,0.00016712,2]
[340572703,1729504255216,-2202.1214,0.00016712,2]
[340572704,1729504255226,-2202.1214,0.00016712,2]
[340572705,1729504255235,-500.0,0.00016712,2]
[340572706,1729504255245,-500.0,0.00016712,2]
[340572707,1729504255255,-968.56,0.00016712,2]
[340572708,1729504255265,-500.0,0.00016712,2]
[340572709,1729504255275,-848.53795,0.00016712,2]
[340572710,1729504255285,-848.53795,0.00016712,2]
[340572711,1729504255294,-848.53795,0.00016712,2]
[340572712,1729504255357,-2562.3,0.00016712,2]
[340572713,1729504255367,-500.0,0.00016712,2]
[340572714,1729504255376,-1582.61,0.00016712,2]
[340572715,1729504255386,-500.0,0.00016712,2]
[340572716,1729504255396,-895.53,0.00016712,2]
[340572717,1729504255406,-538.36925586,0.00016712,2]
[340572718,1729504255415,-848.53795,0.00016712,2]
[340572719,1729504255426,-500.0,0.00016712,2]
[340572720,1729504255436,-848.53795,0.00016712,2]
[340572721,1729504255445,-687.56,0.00016712,2]
[340572722,1729504255454,-1758.14,0.00016712,2]
[340572723,1729504255464,-848.53795,0.00016712,2]
[340572724,1729504255473,-243.19,0.00016712,2]
[340572725,1729504255482,-2011.27,0.00016712,2]
[340572726,1729504255491,-587.39939053,0.00016712,2]
[340572727,1729504255501,-500.0,0.00016712,2]
[340572728,1729504255511,-500.0,0.00016712,2]
[340572729,1729504255520,-1677.72,0.00016712,2]
[340572730,1729504255530,-151.0,0.00016712,2]
[340572731,1729504255539,-151.0,0.00016712,2]
[340572732,1729504255548,-151.0,0.00016712,2]
[340572733,1729504255557,-1520.39,0.00016712,2]
[340572734,1729504255567,-2302.71,0.00016712,2]
[340572735,1729504255577,-151.0,0.00016712,2]
[340572736,1729504255586,-151.0,0.00016712,2]
[340572737,1729504255595,-4391.69,0.00016712,2]
[340572738,1729504255605,-199.813878,0.00016712,2]
[340572739,1729504255614,-500.0,0.00016712,2]
[340572740,1729504255623,-268.90706618,0.00016712,2]
[340572741,1729504255634,-604.33730905,0.00016712,2]
[340572742,1729504255643,-500.0,0.00016712,2]
[340572743,1729504255652,-3329.57,0.00016712,2]
[340572744,1729504255662,-500.0,0.00016712,2]
[340572745,1729504255671,-1438.54,0.00016712,2]
[340572746,1729504255681,-500.0,0.00016712,2]
[340572747,1729504255691,-500.0,0.00016712,2]
[340572748,1729504255700,-1438.72,0.00016712,2]
[340572749,1729504255710,-1999.25,0.00016712,2]
[340572750,1729504255719,-1084.55,0.00016712,2]
[340572751,1729504255728,-516.02791734,0.00016712,2]
[340572752,1729504255738,-500.0,0.00016712,2]
[340572753,1729504255748,-3778.57,0.00016712,2]
[340572754,1729504255757,-500.0,0.00016712,2]
[340572755,1729504255767,-674.97,0.00016712,2]
[340572756,1729504255777,-1254.92,0.00016712,2]
[340572757,1729504255787,-500.0,0.00016712,2]
[340572758,1729504255796,-1651.53,0.00016712,2]
[340572759,1729504255808,-500.0,0.00016712,2]
[340572760,1729504255817,-500.0,0.00016712,2]
[340572761,1729504255827,-151.0,0.00016712,2]
[340572762,1729504255836,-151.0,0.00016712,2]
[340572763,1729504255845,-151.0,0.00016712,2]
[340572764,1729504255855,-1793.77,0.00016712,2]
[340572765,1729504255864,-500.0,0.00016712,2]
[340572766,1729504255874,-500.0,0.00016712,2]
[340572767,1729504255884,-500.0,0.00016712,2]
[340572768,1729504255894,-869.3,0.00016712,2]
[340572769,1729504255904,-500.0,0.00016712,2]
[340572770,1729504255914,-151.0,0.00016712,2]
[340572771,1729504255923,-151.0,0.00016712,2]
[340572772,1729504255932,-151.0,0.00016712,2]
[340572773,1729504255943,-1782.58,0.00016712,2]
[340572774,1729504255952,-1023.69,0.00016712,2]
[340572775,1729504255963,-835.1,0.00016712,2]
[340572776,1729504255973,-500.0,0.00016712,2]
[340572777,1729504255983,-500.0,0.00016712,2]
[340572778,1729504255993,-216.519845,0.00016712,2]
[340572779,1729504256002,-216.519845,0.00016712,2]
[340572780,1729504256012,-216.519845,0.00016712,2]
[340572781,1729504256021,-500.0,0.00016712,2]
[340572782,1729504256030,-500.0,0.00016712,2]
[340572783,1729504256040,-216.519845,0.00016712,2]
[340572784,1729504256049,-1416.54,0.00016712,2]
[340572785,1729504256059,-216.519845,0.00016712,2]
[340572786,1729504256068,-721.81,0.00016712,2]
[340572787,1729504256078,-216.519845,0.00016712,2]
[340572788,1729504256088,-500.0,0.00016712,2]
[340572789,1729504256098,-500.0,0.00016712,2]
[340572790,1729504256107,-994.17,0.00016712,2]
[340572791,1729504256118,-231.935066,0.00016712,2]
[340572792,1729504256127,-231.935066,0.00016712,2]
[340572793,1729504256137,-231.935066,0.00016712,2]
[340572794,1729504256146,-1691.72,0.00016712,2]
[340572795,1729504256156,-391.06266894,0.00016712,2]
[340572796,1729504256165,-151.0,0.00016712,2]
[340572797,1729504256175,-151.0,0.00016712,2]
[340572798,1729504256184,-500.0,0.00016712,2]
[340572799,1729504256193,-151.0,0.00016712,2]
[340572800,1729504256203,-231.935066,0.00016712,2]
[340572801,1729504256212,-231.935066,0.00016712,2]
[340572802,1729504256222,-231.935066,0.00016712,2]
[340572803,1729504256231,-500.0,0.00016712,2]
[340572804,1729504256240,-1812.67,0.00016712,2]
[340572805,1729504256249,-500.0,0.00016712,2]
[340572806,1729504256260,-151.0,0.00016712,2]
[340572807,1729504256271,-1256.34,0.00016712,2]
[340572808,1729504256280,-151.0,0.00016712,2]
[340572809,1729504256290,-151.0,0.00016712,2]
[340572810,1729504256300,-500.0,0.00016712,2]
[340572811,1729504256309,-500.0,0.00016712,2]
[340572812,1729504256320,-4316.4,0.00016712,2]
[340572813,1729504256329,-2179.08,0.00016712,2]
[340572814,1729504256339,-1060.73,0.00016712,2]
[340572815,1729504256349,-830.96,0.00016712,2]
[340572816,1729504256358,-500.0,0.00016712,2]
[340572817,1729504256368,-500.0,0.00016712,2]
[340572818,1729504256377,-1461.62,0.00016712,2]
[340572819,1729504256387,-788.1,0.00016712,2]
[340572820,1729504256396,-500.0,0.00016712,2]
[340572821,1729504256406,-691.257837,0.00016712,2]
[340572822,1729504256415,-500.0,0.00016712,2]
[340572823,1729504256425,-691.257837,0.00016712,2]
[340572824,1729504256435,-862.15,0.00016712,2]
[340572825,1729504256444,-691.257837,0.00016712,2]
[340572826,1729504256454,-2172.33,0.00016712,2]
[340572827,1729504256463,-2264.85,0.00016712,2]
[340572828,1729504256473,-1650.06,0.00016712,2]
[340572829,1729504256482,-626.6,0.00016712,2]
[340572830,1729504256491,-691.257837,0.00016712,2]
[340572831,1729504256500,-567.85632171,0.00016712,2]
[340572832,1729504256513,-500.0,0.00016712,2]
[340572833,1729504256523,-199.23842814,0.00016712,2]
[340572834,1729504256532,-500.0,0.00016712,2]
[340572835,1729504256541,-1809.48,0.00016712,2]
[340572836,1729504256551,-691.257837,0.00016712,2]
[340572837,1729504256561,-691.257837,0.00016712,2]
[340572838,1729504256571,-500.0,0.00016712,2]
[340572839,1729504256581,-2103.03,0.00016712,2]
[340572840,1729504256591,-962.07,0.00016712,2]
[340572841,1729504256601,-262.35030106,0.00016712,2]
[340572842,1729504256611,-500.0,0.00016712,2]
[340572843,1729504256620,-500.0,0.00016712,2]
[340572844,1729504256629,-500.0,0.00016712,2]